bitfinex/quotes_ETHUSD_20260227
["timestamp","ask_amount","ask_price","bid_price","bid_amount"]
[1772197433119,0.59380383,1967.3,1966.2,0.63990612]
[1772197433316,0.59380383,1967.5,1966.4,0.63990612]
[1772197433795,0.59380383,1967.5,1966.6,0.63990612]
[1772197433796,1.27071261,1967.4,1966.6,0.63990612]
[1772197433995,0.065536,1967.9,1966.8,0.63990612]
[1772197433996,1.86419358,1967.9,1966.8,0.63990612]
[1772197434211,1.86419358,1967.9,1966.7,30.0]
[1772197434212,0.59380383,1968.1,1967.0,0.63990612]
[1772197434403,0.59380383,1968.0,1967.0,0.63990612]
[1772197434616,0.59380383,1968.0,1966.7,0.63990612]
[1772197434818,0.59380383,1968.0,1966.5,1.91120029]
[1772197434993,0.59380383,1968.0,1966.6,0.63990612]
[1772197435194,0.59380383,1967.8,1966.6,0.63990612]
[1772197435626,0.59380383,1967.7,1966.6,0.63990612]
[1772197435825,1.86433641,1967.7,1966.8,0.63990612]
[1772197436728,1.27052266,1967.7,1966.8,0.63990612]
[1772197436929,1.86432649,1967.7,1966.8,0.63990612]
[1772197437302,1.27052266,1967.7,1966.8,0.63990612]
[1772197437725,1.86432649,1967.7,1966.8,0.63990612]
[1772197437926,1.86432649,1967.7,1966.9,1.27103563]
[1772197438231,1.27052266,1967.7,1967.0,0.63990612]
[1772197438447,1.86432649,1967.7,1966.9,1.27103563]
[1772197438604,0.59380383,1967.6,1966.8,1.91095545]
[1772197438800,0.59380383,1967.6,1966.5,1.91115842]
[1772197439419,0.59380383,1967.6,1966.2,1.91139426]
[1772197439623,0.59380383,1967.6,1966.3,0.63990612]
[1772197440104,0.59380383,1967.4,1966.4,1.27135882]
[1772197440306,0.59380383,1967.2,1966.4,1.91126494]
[1772197440506,0.59380383,1967.2,1966.4,0.63990612]
[1772197440703,0.59380383,1967.2,1966.2,1.27144027]
[1772197440908,0.59380383,1967.0,1966.2,1.27144027]
[1772197441106,0.59380383,1967.0,1966.1,1.91140684]
[1772197441608,1.41780383,1967.0,1966.1,1.91140684]
[1772197441808,0.59380383,1967.2,1966.2,0.63990612]
[1772197442011,1.27097102,1967.0,1966.3,1.27142348]
[1772197443029,2.77097102,1967.0,1966.3,1.27142348]
[1772197443242,1.86467462,1967.2,1966.4,0.63990612]
[1772197443549,3.36467462,1967.2,1966.4,0.63990612]
[1772197444228,0.59380383,1966.9,1966.1,1.91145894]
[1772197444542,0.59380383,1966.9,1965.7,0.0011]
[1772197444732,0.59380383,1966.9,1965.7,1.27288972]
[1772197444939,0.59380383,1966.7,1965.8,0.63990612]
[1772197445633,1.499,1967.1,1965.8,0.63990612]
[1772197445825,1.499,1967.1,1965.9,0.63990612]
[1772197447438,0.59380383,1967.3,1966.1,0.63990612]
[1772197447604,2.6886229,1967.3,1966.1,0.63990612]
[1772197448959,1.8646229,1967.3,1966.1,0.63990612]
[1772197449360,0.59380383,1967.2,1966.1,0.63990612]
[1772197449661,1.27090641,1967.1,1966.3,0.63990612]
[1772197449863,0.59380383,1967.5,1966.3,0.63990612]
[1772197450167,1.87042106,1967.6,1966.3,0.63990612]
[1772197450474,1.87042106,1967.6,1966.5,0.65103211]
[1772197450475,0.001,1967.6,1966.5,0.65103211]
[1772197450937,0.001,1967.6,1966.6,0.065536]
[1772197451268,0.001,1967.6,1966.7,0.65103211]
[1772197451578,0.001,1967.6,1966.9,0.65103211]
[1772197453270,0.59978493,1967.6,1966.8,1.27110026]
[1772197453643,0.59978493,1967.6,1966.9,0.65103211]
[1772197453644,0.001,1967.6,1966.9,0.65103211]
[1772197454044,0.001,1967.5,1966.9,0.65103211]
[1772197454869,0.001,1967.5,1966.9,0.64579942]
[1772197455482,1.86911356,1968.0,1966.9,0.65103211]
[1772197455667,1.86911356,1968.0,1967.1,0.65103211]
[1772197455869,0.59878493,1968.0,1967.1,0.65103211]
[1772197456201,1.86911675,1968.0,1967.1,0.65103211]
[1772197456412,1.27032296,1968.1,1967.1,0.65103211]
[1772197456567,1.42673885,1968.3,1967.2,0.65103211]
[1772197456901,1.42673704,1968.3,1967.2,0.65103211]
[1772197457081,0.1565969,1968.3,1967.2,0.65103211]
[1772197457281,0.1565969,1968.3,1967.4,0.65103211]
[1772197457668,1.42672856,1968.3,1967.6,0.65103211]
[1772197458069,0.1565969,1968.3,1967.6,0.65103211]
[1772197458772,0.59878493,1969.0,1967.8,17.622792]
[1772197458975,0.59878493,1969.0,1967.7,0.65103211]
[1772197459575,0.59878493,1968.8,1967.7,0.65103211]
[1772197459791,0.59878493,1968.6,1967.8,1.27045431]
[1772197460171,0.59878493,1968.6,1967.7,1.92149936]
[1772197460693,0.59878493,1968.6,1967.6,1.27053029]
[1772197460898,0.59878493,1968.6,1967.7,0.65103211]
[1772197461093,0.59878493,1968.6,1967.4,1.92174044]
[1772197461401,0.59878493,1968.6,1967.4,1.27070833]
[1772197461780,0.59878493,1968.4,1967.3,5.73388257]
[1772197462094,1.495,1968.3,1967.4,0.65103211]
[1772197462300,2.09378493,1968.3,1967.4,0.65103211]
[1772197462892,0.59878493,1968.3,1967.4,0.65103211]
[1772197463775,2.76500254,1968.5,1967.6,0.65103211]
[1772197463980,1.86877299,1968.6,1967.7,1.92155098]
[1772197464289,1.86859395,1968.8,1967.9,0.65103211]
[1772197464795,1.26980902,1968.8,1967.9,0.65103211]
[1772197465000,1.26968004,1969.0,1968.1,0.65103211]
[1772197465192,2.76368004,1969.0,1968.1,0.65103211]
[1772197465886,1.26968004,1969.0,1968.1,0.65103211]
[1772197466086,1.26968004,1969.0,1968.2,1.92122822]
[1772197466478,1.26968004,1969.0,1968.3,0.65103211]
[1772197466700,5.42172437,1969.1,1968.3,0.65103211]
[1772197466902,5.07808602,1969.3,1968.3,0.65103211]
[1772197467103,2.76255108,1969.2,1968.3,0.65103211]
[1772197467274,1.493,1969.2,1968.3,0.65103211]
[1772197467806,0.001,1968.9,1968.3,0.65103211]
[1772197468185,0.001,1968.9,1968.5,0.65103211]
[1772197468503,2.76139899,1969.5,1968.5,0.65103211]
[1772197468815,1.26927108,1969.7,1968.6,18.767744]
[1772197468979,1.26927108,1969.7,1968.7,0.65103211]
[1772197469175,1.86805601,1969.7,1968.7,0.65103211]
[1772197469378,0.59878493,1969.6,1968.5,0.65103211]
[1772197470442,1.86814263,1969.5,1968.6,1.26993802]
[1772197470655,0.59878493,1969.4,1968.6,1.26993802]
[1772197470819,0.59878493,1969.2,1968.3,1.27013158]
[1772197471358,1.492,1969.1,1968.3,1.27013158]
[1772197471649,1.91378493,1969.2,1968.3,1.92116369]
[1772197471939,1.91378493,1969.2,1968.4,0.65103211]
[1772197472150,2.09178493,1969.4,1968.4,0.65103211]
[1772197472349,1.86827154,1969.3,1968.5,1.27000254]
[1772197472526,0.59878493,1969.3,1968.5,1.92103465]
[1772197472854,2.76247506,1969.4,1968.6,0.65103211]
[1772197473546,2.76242922,1969.4,1968.6,0.65103211]
[1772197473721,1.26938155,1969.5,1968.6,0.65103211]
[1772197474220,0.59878493,1969.4,1968.6,0.65103211]
[1772197474419,1.86827154,1969.3,1968.6,1.92096329]
[1772197474722,0.59878493,1969.2,1968.4,5.08014694]
[1772197475053,0.59878493,1969.2,1968.4,5.73117905]
[1772197475435,2.76248661,1969.3,1968.5,0.65103211]
[1772197475618,1.493,1969.3,1968.5,0.65103211]
[1772197476345,1.86816791,1969.5,1968.5,0.65103211]
[1772197476558,2.76238298,1969.5,1968.7,0.65103211]
[1772197476744,1.492,1969.6,1968.7,0.65103211]
[1772197478167,5.07699564,1969.7,1968.7,0.65103211]
[1772197478372,1.86801374,1969.8,1968.9,0.64684479]
[1772197478373,3.3589933,1969.8,1968.9,0.64684479]
[1772197478870,3.3589933,1969.8,1969.0,1.91652483]
[1772197479460,1.491,1969.7,1969.0,1.91652483]
[1772197480167,1.491,1969.7,1969.1,0.6130246]
[1772197480343,0.60239642,1969.6,1968.8,0.6130246]
[1772197480545,0.60239642,1969.6,1968.8,1.88281246]
[1772197480745,1.493,1969.6,1968.9,0.6130246]
[1772197481153,0.001,1969.5,1969.1,0.6130246]
[1772197481469,5.07649748,1969.9,1969.1,0.6130246]
[1772197481470,1.26914641,1969.9,1969.1,0.6130246]
[1772197481673,1.26914641,1969.9,1969.0,1.26968004]
[1772197481674,0.60239642,1970.2,1969.2,0.6130246]
[1772197481859,1.067,1970.1,1969.2,0.6130246]
[1772197482231,1.66939642,1970.1,1969.2,0.6130246]
[1772197482438,0.60239642,1970.0,1969.0,1.26968004]
[1772197482638,0.60239642,1970.0,1969.1,0.6130246]
[1772197482955,1.50939642,1970.0,1969.1,0.6130246]
[1772197483261,1.26909995,1969.9,1969.2,1.88257568]
[1772197483652,1.26909995,1969.9,1969.2,0.6130246]
[1772197483854,0.60239642,1969.8,1969.0,1.88265773]
[1772197484473,1.87141374,1970.1,1969.1,0.6130246]
[1772197484640,0.60239642,1970.0,1969.1,0.6130246]
[1772197485465,1.87143255,1970.0,1969.3,0.6130246]
[1772197485669,1.26895783,1970.2,1969.3,0.6130246]
[1772197485862,0.60239642,1970.1,1969.3,0.6130246]
[1772197486257,0.60239642,1970.1,1969.2,1.26955108]
[1772197486480,0.60239642,1970.1,1969.0,1.88265324]
[1772197487377,0.60239642,1969.9,1969.0,1.88265324]
[1772197487777,1.26903553,1970.0,1968.7,1.4681]
[1772197487778,0.60239642,1969.7,1968.7,0.6141246]
[1772197487960,0.60239642,1969.5,1968.7,1.27097217]
[1772197488372,0.60239642,1969.5,1968.7,0.0011]
[1772197488876,0.60239642,1969.3,1968.7,0.0011]
[1772197489077,0.60239642,1969.3,1968.7,1.27096529]
[1772197489256,1.493,1969.5,1968.7,1.27096529]
[1772197489453,1.26942215,1969.4,1968.7,1.88398989]
[1772197489858,1.87181857,1969.4,1968.7,1.88398989]
[1772197491350,6.57060792,1969.5,1968.7,1.88398989]
[1772197491351,1.493,1969.5,1968.7,1.88398989]
[1772197491556,1.26932451,1969.6,1968.8,0.6130246]
[1772197491980,2.09539642,1970.0,1968.9,0.6130246]
[1772197492485,5.07514226,1970.4,1968.8,1.468]
[1772197492486,1.87124327,1970.3,1969.1,0.6130246]
[1772197492680,1.87124327,1970.3,1969.3,0.6130246]
[1772197493111,0.60239642,1970.2,1969.3,0.6130246]
[1772197493474,5.07536923,1970.6,1969.3,0.6130246]
[1772197493475,0.60239642,1970.8,1969.5,0.6130246]
[1772197493708,2.09439642,1970.7,1969.5,0.6130246]
[1772197494009,0.60239642,1970.6,1969.5,0.6130246]
[1772197494675,1.26852039,1970.8,1969.5,0.6130246]
[1772197494676,2.09439642,1970.5,1969.5,0.6130246]
[1772197495294,0.60239642,1970.4,1969.3,1.26943701]
[1772197495599,1.87123872,1970.3,1969.3,0.6130246]
[1772197495782,3.15723872,1970.3,1969.3,0.6130246]
[1772197496691,0.60239642,1970.2,1969.3,0.6130246]
[1772197497585,1.26897111,1970.1,1969.4,1.26942215]
[1772197498180,1.87135518,1970.2,1969.4,1.26942215]
[1772197498504,1.87135518,1970.2,1969.4,1.88244675]
[1772197498801,0.60239642,1970.1,1969.4,1.26942215]
[1772197499603,1.26900883,1970.1,1969.3,0.6130246]
[1772197499906,7.16786615,1970.3,1969.3,0.6130246]
[1772197500208,0.60239642,1970.2,1969.3,0.6130246]
[1772197501482,0.60239642,1970.2,1969.0,5.69128396]
[1772197501687,0.60239642,1970.0,1969.0,1.88270464]
[1772197501997,0.60239642,1969.8,1968.9,1.26968779]
[1772197502195,0.60239642,1969.6,1968.9,1.26968779]
[1772197502507,1.488,1969.7,1969.0,0.6130246]
[1772197503003,2.09039642,1969.7,1969.0,0.6130246]
[1772197503174,0.60239642,1969.7,1969.0,0.6130246]
[1772197503376,0.60239642,1969.7,1968.6,5.0789781]
[1772197503377,0.60239642,1969.7,1968.0,5.08105928]
[1772197503691,0.60239642,1969.4,1968.0,0.6130246]
[1772197504075,0.60239642,1969.4,1967.7,0.6130246]
[1772197504281,0.60239642,1969.2,1967.7,0.6130246]
[1772197504606,0.60239642,1969.0,1967.7,0.6130246]
[1772197504781,0.60239642,1969.0,1967.5,0.0011]
[1772197504980,0.60239642,1968.9,1967.5,0.0011]
[1772197505286,0.60239642,1968.7,1967.5,0.0011]
[1772197505480,0.60239642,1968.5,1967.5,0.0011]
[1772197505682,0.60239642,1968.3,1967.5,0.0011]
[1772197506205,0.60239642,1968.3,1966.7,7.61107165]
[1772197506206,0.60239642,1968.3,1966.7,0.6130246]
[1772197506383,0.60239642,1968.1,1966.7,0.6130246]
[1772197506583,0.60239642,1968.1,1966.4,1.88435025]
[1772197506783,0.60239642,1968.1,1967.8,0.0011]
[1772197506991,0.60239642,1967.9,1966.4,1.88435025]
[1772197507189,0.60239642,1967.7,1966.4,1.88435025]
[1772197507514,0.60239642,1967.7,1966.2,3.79799203]
[1772197507681,2.77597987,1967.6,1967.5,0.0011]
[1772197507880,0.60239642,1967.5,1966.3,0.6130246]
[1772197508075,0.60239642,1967.5,1966.0,1.88459729]
[1772197508509,0.60239642,1967.5,1966.0,0.6130246]
[1772197508712,0.60239642,1967.5,1966.0,1.884637]
[1772197508920,0.985,1967.4,1966.1,0.6130246]
[1772197509212,1.58739642,1967.4,1966.1,0.6130246]
[1772197509580,1.87317362,1967.3,1966.2,1.88451274]
[1772197509780,1.87317362,1967.3,1966.0,1.2715688]
[1772197509781,0.60239642,1967.2,1966.0,1.2715688]
[1772197510006,2.08087688,1967.1,1965.9,1.88465751]
[1772197510383,0.59687688,1967.0,1965.9,0.6130246]
[1772197510582,0.59687688,1967.0,1965.7,5.08833689]
[1772197510583,0.59687688,1967.0,1965.7,1.27286129]
[1772197511085,0.59687688,1967.0,1965.7,1.27291124]
[1772197511286,0.59687688,1967.0,1965.7,1.8738011]
[1772197511478,1.69387688,1966.9,1965.8,0.60088986]
[1772197511684,0.59687688,1966.6,1965.7,0.0011]
[1772197512286,0.59687688,1966.6,1965.7,1.27290408]
[1772197512507,1.482,1966.5,1965.7,1.27290408]
[1772197512897,2.07887688,1966.5,1965.7,0.0011]
[1772197513306,0.59687688,1966.5,1965.7,1.27290715]
[1772197513509,1.482,1966.6,1965.7,1.87379701]
[1772197513695,1.27129417,1966.5,1965.7,1.87379701]
[1772197514498,1.27127973,1966.6,1965.8,0.60088986]
[1772197514918,0.59687688,1966.5,1965.7,0.0011]
[1772197515628,0.59687688,1966.5,1965.5,0.0011]
[1772197515924,0.59687688,1966.3,1965.5,0.0011]
[1772197516140,0.59687688,1966.3,1965.5,0.60198986]
[1772197516316,1.481,1966.2,1965.5,0.60198986]
[1772197517731,1.27155282,1966.1,1965.5,0.0011]
[1772197518402,1.27155282,1966.1,1965.5,0.60198986]
[1772197518724,2.75255282,1966.1,1965.5,0.60198986]
[1772197518907,1.481,1966.1,1965.5,0.60198986]
[1772197519530,2.07787688,1966.1,1965.5,0.0011]
[1772197519944,1.27161749,1966.0,1965.7,0.0011]
[1772197520148,0.59687688,1965.9,1965.4,0.0011]
[1772197520444,1.27161749,1966.0,1965.4,0.0011]
[1772197520648,1.482,1965.9,1965.4,0.0011]
[1772197520941,1.482,1965.8,1965.4,0.0011]
[1772197521240,1.27161749,1966.0,1965.4,0.0011]
[1772197521436,1.482,1965.9,1965.4,0.0011]
[1772197521948,1.27174687,1965.8,1965.4,0.0011]
[1772197522316,2.75374687,1965.8,1965.4,0.0011]
[1772197522655,0.9718108,1969.7,1965.4,0.60198986]
[1772197522656,1.27135882,1966.4,1965.4,0.60198986]
[1772197523022,1.483,1966.3,1965.4,0.60198986]
[1772197523426,0.59687688,1966.2,1965.4,0.0011]
[1772197524038,0.59687688,1966.0,1965.4,0.0011]
[1772197524850,2.75453104,1966.2,1965.4,0.60198986]
[1772197525358,3.35140792,1966.2,1965.4,0.0011]
[1772197526357,1.484,1966.1,1965.4,0.0011]
[1772197527151,1.27153104,1966.2,1965.4,0.60198986]
[1772197527351,2.75553104,1966.2,1965.4,0.60198986]
[1772197528056,1.27135882,1966.4,1965.6,0.60088986]
[1772197528258,1.484,1966.3,1965.6,0.60088986]
[1772197529947,1.483,1966.3,1965.6,0.60088986]
[1772197530151,1.483,1966.3,1965.7,1.27181156]
[1772197530456,1.27133817,1966.5,1965.8,0.60088986]
[1772197530677,1.483,1966.4,1965.8,0.60088986]
[1772197531681,5.68127994,1966.8,1965.8,0.60088986]
[1772197531682,1.27121896,1966.7,1965.8,0.60088986]
[1772197531865,1.482,1966.5,1965.8,0.60088986]
[1772197532255,1.482,1966.6,1966.0,0.60088986]
[1772197532467,0.001,1966.3,1966.0,0.60088986]
[1772197532979,0.001,1966.3,1965.6,0.0011]
[1772197533152,0.001,1966.3,1965.6,0.60198986]
[1772197533357,0.59787688,1966.3,1965.6,0.0011]
[1772197534266,0.59787688,1966.3,1965.3,0.0011]
[1772197534267,0.59687688,1965.9,1965.3,0.0011]
[1772197534448,1.481,1965.8,1964.7,0.60088986]
[1772197534653,2.07787688,1965.8,1964.7,0.60088986]
[1772197535253,0.59687688,1965.7,1964.7,0.60088986]
[1772197535785,1.48,1965.6,1964.7,0.60088986]
[1772197537863,1.27187627,1965.6,1964.8,1.27239413]
[1772197538064,1.48,1965.5,1964.8,1.27239413]
[1772197541591,1.27200569,1965.4,1964.8,1.27239413]
[1772197541758,2.75195948,1965.5,1964.8,1.27239413]
[1772197541965,2.75195948,1965.5,1964.8,1.86104379]
[1772197542683,2.74974687,1965.8,1964.9,0.58864966]
[1772197542880,1.478,1965.8,1964.9,0.58864966]
[1772197543669,1.27181156,1965.7,1965.1,0.58864966]
[1772197543996,2.74979665,1965.8,1965.1,0.58864966]
[1772197544894,2.7497532,1965.8,1965.1,0.58864966]
[1772197545062,2.7507532,1965.8,1965.1,0.58864966]
[1772197545991,2.7507532,1965.8,1965.2,1.86078481]
[1772197546296,1.479,1965.8,1965.3,0.58864966]
[1772197549197,1.27150058,1966.2,1965.5,0.58864966]
[1772197549394,1.477,1966.2,1965.5,0.58864966]
[1772197549769,1.27246745,1966.3,1965.5,0.58864966]
[1772197549770,0.001,1966.3,1965.5,0.58864966]
[1772197551291,0.001,1966.3,1965.7,0.58864966]
[1772197553675,0.001,1966.3,1965.9,0.58864966]
[1772197554808,0.959,1967.1,1965.9,0.58864966]
[1772197555805,1.27097102,1967.0,1966.1,0.58864966]
[1772197556206,1.27097102,1967.0,1966.0,1.27161749]
[1772197556207,0.58798439,1966.9,1966.0,1.27161749]
[1772197556512,1.47,1966.9,1966.1,0.58864966]
[1772197557506,0.001,1966.2,1966.1,0.58864966]
[1772197557910,0.001,1966.2,1966.1,1.86020248]
[1772197558209,0.001,1966.2,1965.6,0.58974966]
[1772197558508,0.001,1966.2,1965.9,18.474224]
[1772197558704,0.824,1966.9,1966.1,0.58864966]
[1772197558910,0.001,1966.8,1966.1,0.58864966]
[1772197560189,2.68306785,1966.9,1966.2,1.27148814]
[1772197560402,0.001,1966.7,1966.2,1.27148814]
[1772197560819,0.001,1966.6,1966.2,1.27148814]
[1772197561009,0.001,1966.8,1966.2,1.27148814]
[1772197561732,0.58898439,1966.7,1965.9,5.0866181]
[1772197561933,0.001,1966.7,1966.0,0.58864966]
[1772197562501,0.001,1966.7,1966.0,1.86021757]
[1772197563032,0.001,1966.6,1966.0,1.86021757]
[1772197563237,0.001,1966.8,1966.0,1.86021757]
[1772197563744,0.58898439,1966.8,1966.0,1.86021757]
[1772197564038,0.001,1966.7,1966.1,0.58864966]
[1772197564804,0.001,1966.7,1966.3,0.58864966]
[1772197566817,2.04998439,1967.1,1966.4,1.86000848]
[1772197567024,0.001,1967.0,1966.4,1.86000848]
[1772197567409,0.001,1967.0,1966.5,0.58864966]
[1772197568732,20.74415992,1972.1,1966.5,0.58864966]
[1772197568733,1.461,1967.7,1966.5,0.58864966]
[1772197568926,0.58798439,1967.4,1966.6,1.27122953]
[1772197569549,0.58798439,1967.4,1966.1,1.86017617]
[1772197569718,0.18685624,1967.3,1966.1,1.86017617]
[1772197569924,0.58798439,1967.2,1966.1,1.86017617]
[1772197570220,0.61083915,1967.0,1965.6,0.56791895]
[1772197570434,0.61083915,1966.8,1965.8,0.56681895]
[1772197570640,0.61083915,1966.8,1965.7,1.27174687]
[1772197570928,0.61083915,1966.6,1966.0,0.0011]
[1772197571128,1.43483915,1966.5,1966.0,0.0011]
[1772197571639,0.61083915,1966.4,1966.0,0.0011]
[1772197573152,1.88225477,1966.4,1966.0,0.0011]
[1772197573332,3.34025477,1966.4,1966.0,0.0011]
[1772197573754,0.61083915,1966.3,1965.6,1.83974842]
[1772197575332,1.88228681,1966.3,1965.6,1.83974842]
[1772197576451,0.61083915,1966.2,1965.6,0.0011]
[1772197576937,0.61083915,1966.2,1965.6,1.27297364]
[1772197577149,0.61083915,1966.2,1965.6,0.0011]
[1772197577462,1.27155282,1966.1,1965.6,0.0011]
[1772197577638,0.61083915,1966.0,1965.6,0.0011]
[1772197578341,1.88236228,1966.2,1965.6,0.0011]
[1772197578540,3.33936228,1966.2,1965.6,0.0011]
[1772197578946,1.458,1966.1,1965.6,0.0011]
[1772197579464,5.08458878,1966.8,1965.7,0.56681895]
[1772197579465,0.61083915,1966.6,1965.7,0.56681895]
[1772197579768,0.61083915,1966.4,1965.7,0.56681895]
[1772197582468,0.61083915,1966.4,1965.7,1.27178959]
[1772197582469,1.88226263,1966.3,1965.7,1.27178959]
[1772197582875,1.88226263,1966.3,1965.7,1.27288959]
[1772197583051,1.88226263,1966.3,1965.7,1.83970854]
[1772197583845,1.88226263,1966.3,1965.7,1.27288959]
[1772197584985,0.61083915,1966.2,1965.6,0.0011]
[1772197585966,1.456,1966.1,1965.6,0.0011]
[1772197586781,2.06683915,1966.1,1965.6,0.0011]
[1772197587014,1.88250689,1966.0,1965.6,0.0011]
[1772197587386,0.61083915,1965.9,1965.6,0.0011]
[1772197588529,1.27166774,1966.0,1965.6,0.0011]
[1772197588701,1.457,1965.9,1965.6,0.0011]
[1772197590389,2.72873211,1965.9,1965.6,0.0011]
[1772197590641,3.33957126,1965.9,1965.5,0.0011]
[1772197590920,0.61083915,1965.8,1965.5,0.0011]
[1772197591425,0.61083915,1965.8,1964.9,1.27338139]
[1772197591830,0.61083915,1965.8,1964.9,1.84020034]
[1772197592491,0.61083915,1966.2,1965.3,0.56681895]
[1772197592704,1.27142348,1966.3,1965.3,0.56681895]
[1772197592705,2.07083915,1966.1,1965.3,0.56681895]
[1772197593120,0.61083915,1966.0,1965.0,5.08905656]
[1772197593309,0.61083915,1965.8,1965.0,1.27226463]
[1772197593490,0.61083915,1965.8,1964.9,1.84019878]
[1772197594504,0.61083915,1965.6,1964.9,0.0011]
[1772197595895,1.46,1965.5,1964.9,0.56791895]
[1772197596192,1.46,1965.5,1965.0,0.0011]
[1772197596410,0.61083915,1965.6,1965.0,0.0011]
[1772197596718,1.461,1965.5,1965.0,1.27336463]
[1772197598006,2.07183915,1965.5,1965.0,0.0011]
[1772197599121,1.27185597,1965.7,1965.0,0.0011]
[1772197599325,1.461,1966.0,1965.0,0.56815602]
[1772197599500,1.27262171,1966.0,1965.1,0.56705602]
[1772197600099,0.001,1966.0,1965.1,0.56705602]
[1772197601122,0.001,1966.0,1965.3,0.58826639]
[1772197602498,1.051,1966.5,1965.3,0.58826639]
[1772197602729,1.051,1966.5,1965.5,0.58826639]
[1772197603113,1.051,1966.5,1965.7,0.58826639]
[1772197603917,0.001,1966.6,1965.7,0.58826639]
[1772197606128,0.54805612,1966.5,1965.9,0.58826639]
[1772197606328,0.54805612,1966.5,1965.7,1.2717632]
[1772197606630,0.001,1966.6,1965.8,0.58826639]
[1772197606928,1.457,1966.6,1965.8,0.58826639]
[1772197607107,2.00505612,1966.6,1965.8,0.58826639]
[1772197607514,0.54905612,1966.6,1965.8,0.58826639]
[1772197607716,0.001,1966.6,1965.8,0.58826639]
[1772197608216,0.001,1966.5,1965.8,0.58826639]
[1772197608411,0.001,1966.5,1966.0,0.58826639]
[1772197611334,0.001,1966.5,1966.1,1.85981921]
[1772197614743,0.001,1966.5,1966.1,0.58826639]
[1772197614947,0.001,1966.5,1965.7,5.08719529]
[1772197614948,0.54905612,1966.5,1965.7,5.67540183]
[1772197615239,0.54905612,1966.5,1965.8,0.58826639]
[1772197615440,0.001,1966.5,1966.0,0.58826639]
[1772197616411,1.27230826,1966.5,1966.0,0.58826639]
[1772197616618,0.001,1966.5,1966.0,0.58826639]
[1772197617547,0.54905612,1966.5,1965.5,0.58826639]
[1772197619719,0.54805612,1966.3,1966.1,0.0011]
[1772197619921,1.449,1966.2,1966.1,0.0011]
[1772197620919,1.45,1966.2,1966.1,0.0011]
[1772197621243,1.27235882,1966.4,1966.1,0.0011]
[1772197621450,1.451,1966.3,1966.1,0.0011]
[1772197621840,1.27148814,1966.2,1966.1,0.0011]
[1772197622041,1.27148814,1966.2,1966.0,0.0011]
[1772197622355,1.27148814,1966.2,1766.9,1.12327824]
[1772197622356,0.54805612,1966.1,1965.1,0.58826639]
[1772197622553,0.54805612,1966.1,1965.2,0.58826639]
[1772197622846,2.00005612,1966.0,1965.2,0.58826639]
[1772197623848,1.27168218,1965.9,1965.2,0.58826639]
[1772197624042,0.54805612,1965.8,1965.2,1.86037443]
[1772197624445,1.27168218,1965.9,1965.3,0.58826639]
[1772197624759,1.452,1966.2,1965.3,0.58826639]
[1772197625365,0.54805612,1966.1,1965.3,0.58826639]
[1772197625667,1.452,1966.0,1965.3,0.58826639]
[1772197625861,1.451,1966.0,1965.3,0.58826639]
[1772197626033,2.72265534,1966.0,1965.4,1.86027208]
[1772197626436,0.54805612,1965.9,1965.1,0.58826639]
[1772197626640,0.54805612,1965.9,1965.2,0.58826639]
[1772197628453,2.72262222,1966.0,1965.4,0.58826639]
[1772197629135,1.451,1966.0,1965.4,0.58826639]
[1772197629332,2.72262004,1966.0,1965.4,0.58826639]
[1772197630357,2.72262004,1966.0,1965.4,1.86023222]
[1772197630531,0.55839875,1965.9,1965.4,1.86023222]
[1772197632261,5.64419156,1966.3,1965.5,0.59385945]
[1772197632558,0.55839875,1966.2,1965.5,1.86575351]
[1772197633062,0.001,1965.8,1965.5,0.59385945]
[1772197633558,0.001,1965.8,1965.5,1.86579436]
[1772197635062,2.01239875,1965.8,1965.3,0.0011]
[1772197635262,0.55839875,1965.7,1965.3,0.0011]
[1772197636139,0.55839875,1965.7,1965.0,0.59495945]
[1772197636140,0.55839875,1965.7,1965.0,1.27336346]
[1772197636345,1.452,1965.6,1965.0,1.86722291]
[1772197636746,0.55839875,1965.4,1965.0,0.0011]
[1772197639663,1.27207042,1965.3,1965.0,0.0011]
[1772197639861,1.453,1965.2,1965.0,0.0011]
[1772197640174,1.453,1965.2,1964.9,0.0011]
[1772197640350,1.453,1965.2,1964.3,5.09084939]
[1772197640351,0.55839875,1965.1,1964.3,5.09084939]
[1772197640558,0.55839875,1965.1,1964.2,0.59385945]
[1772197640857,0.55839875,1964.9,1964.2,0.59385945]
[1772197641161,0.55839875,1964.9,1964.3,0.73348754]
[1772197641356,0.55839875,1964.9,1964.2,0.73348754]
[1772197641748,0.55839875,1964.7,1964.2,0.73348754]
[1772197642465,1.453,1964.6,1964.2,0.73348754]
[1772197643667,3.28372924,1964.9,1964.4,1.27265322]
[1772197644474,3.28372924,1964.9,1964.3,1.86654212]
[1772197644678,3.28372924,1964.9,1964.4,0.73348754]
[1772197644885,0.55839875,1964.8,1964.4,0.73348754]
[1772197645743,1.27245889,1964.7,1964.4,0.73348754]
[1772197646871,0.55839875,1964.8,1964.4,2.00613936]
[1772197647051,1.455,1964.7,1964.4,2.00613936]
[1772197647371,1.455,1964.7,1964.4,0.73348754]
[1772197647778,1.8306897,1965.0,1964.4,2.00613574]
[1772197647984,1.455,1964.9,1964.4,2.00613574]
[1772197649481,2.01339875,1964.9,1964.4,0.73348754]
[1772197649776,2.01339875,1964.9,1964.4,2.00613516]
[1772197650073,1.27229095,1965.0,1964.4,2.00613516]
[1772197650247,1.83057671,1965.2,1964.5,0.59385945]
[1772197650452,1.456,1965.1,1964.5,0.59385945]
[1772197651445,2.01439875,1965.1,1964.5,0.59385945]
[1772197651796,0.55839875,1965.0,1964.6,0.73348754]
[1772197652088,1.83072813,1964.9,1964.5,0.73348754]
[1772197652287,0.55839875,1964.8,1964.3,0.0011]
[1772197652588,2.01439875,1964.7,1964.4,0.73348754]
[1772197653472,1.83067868,1965.0,1964.5,0.73348754]
[1772197653662,1.457,1964.9,1964.4,1.32734699]
[1772197654051,1.457,1964.9,1964.5,2.00607598]
[1772197654379,1.457,1965.0,1964.5,2.59993543]
[1772197654683,1.457,1965.0,1964.6,0.73348754]
[1772197655977,2.01539875,1965.0,1964.7,0.73348754]
[1772197656182,2.01539875,1965.0,1964.4,1.27264337]
[1772197656868,0.55839875,1964.8,1964.5,0.73348754]
[1772197657068,1.456,1964.7,1964.4,0.73348754]
[1772197657777,1.456,1964.7,1964.5,0.0011]
[1772197658983,2.7284749,1964.7,1964.5,0.0011]
[1772197659172,0.54519602,1964.6,1964.2,0.0011]
[1772197659355,0.54519602,1964.6,1963.6,1.81665004]
[1772197659557,0.54519602,1964.6,1963.7,1.27309557]
[1772197659892,0.54519602,1964.6,1963.8,1.27413537]